Cogmind - Beta 16 --- EXPLORER MODE // 2025.12.12 @ 13:39:57 Player: K.K.Y. Result: Destroyed by Autobeam Turret with Autobeam Performance ------------- Evolutions (0) 0 Regions Visited (3) 600 Robots Destroyed (41) 205 Value Destroyed (784) 784 Prototype IDs (16) 320 Alien Tech Used (0) 0 Bonus (10) 10 TOTAL SCORE: 1919 Bonus ------- Follower Combat Kills 30 Friendly Fire -20 Cogmind --------- Core Integrity 0/250 Matter 245/300 Energy 100/100 System Corruption 1% Temperature Cool (12) Movement Core (2500) Ox49 Location -10/Subcaves Parts ------- > --- POWER (1+1) ------ (None) > --- PROPULSION (3+1) - (None) > --- UTILITY (2+1) ---- Cargo Storage Unit (+) Rainbow Chip > --- WEAPON (2+1) ----- Beamcaster Battle Cannon > --- INVENTORY (30) --- Improved Heat Sink Improved Heat Sink Weight Redist. System Improved Terrain Scanner Mining Laser Peak State ------------ > --- POWER ------------ (None) > --- PROPULSION ------- Spiked Treads > --- UTILITY ---------- Improved Heat Sink Rainbow Chip > --- WEAPON ----------- Beamcaster Battle Cannon > --- INVENTORY -------- Improved Heat Sink Cargo Storage Unit Improved Terrain Scanner Mining Laser [Rating: 25] Favorites ----------- Power Light Ion Engine Engine Light Ion Engine Propulsion Spiked Treads Treads Spiked Treads Wheel Wheel Flight Unit Flight Unit Utility Improved Heat Sink Device Improved Heat Sink Storage Cargo Storage Unit Processor Rainbow Chip Weapon Beamcaster Energy Gun Beamcaster Ballistic Cannon Battle Cannon Build | -11 -10 -10 -10 ------- Run | Yrd Mat Min Sub Slots Evolved 1 | . 1 . . Power . | . . . . Propulsion 1 | . 1 . . Utility . | . . . . Weapon . | . . . . Parts Attached 25 | 5 8 2 10 Power 3 | 1 . 1 1 Engine 3 | 1 . 1 1 Core . | . . . . Reactor . | . . . . Propulsion 10 | . 8 1 1 Treads 1 | . . . 1 Leg . | . . . . Wheel 5 | . 5 . . Hover . | . . . . Flight 4 | . 3 1 . Utility 7 | 2 . . 5 Device 4 | 1 . . 3 Storage 1 | . . . 1 Processor 2 | 1 . . 1 Hackware . | . . . . Protection . | . . . . Artifact . | . . . . Weapon 5 | 2 . . 3 Energy Gun 4 | 2 . . 2 Energy Cannon . | . . . . Ballistic Gun . | . . . . Ballistic Cannon 1 | . . . 1 Launcher . | . . . . Special Weapon . | . . . . Impact Weapon . | . . . . Slashing Weapon . | . . . . Piercing Weapon . | . . . . Special Melee Weapon . | . . . . Unidentified Prototypes . | . . . . Parts Lost 6 | . . . 6 Power 1 | . . . 1 Propulsion 2 | . . . 2 Utility 1 | . . . 1 Weapon 2 | . . . 2 Highest Loss Streak 2 | . . . 2 To Critical Strikes . | . . . . Average Backups 4 | 1 3 4 4 Power . | . . . . Propulsion . | 1 . . . Utility 3 | . 2 3 3 Weapon . | . 1 1 1 Tool/Special . | . . . . Unused Backups 4 | 1 . . 3 Power . | . . . . Propulsion 1 | 1 . . . Utility 2 | . . . 2 Weapon 1 | . . . 1 Tool/Special . | . . . . Average Slot Usage (%) 62 | . 94 100 51 Engine 3 | . 12 12 1 Treads 7 | . . . 9 Wheel 4 | . 28 . . Flight 5 | . 3 37 1 Device 12 | . 12 12 12 Storage 2 | . . . 3 Processor 6 | . 12 12 4 Energy Gun 14 | . 25 25 11 Ballistic Cannon 4 | . . . 6 Peak Build Rating 25 | 5 8 9 25 Average Rating 15 | 4 7 8 18 On Entrance 5 | . 5 8 9 Avg Prop Armor Cover (%) 6 | . . . 6 Naked Turns . | . . . . Heaviest Build 148 | 7 7 11 148 Greatest Support 30 | 3 30 12 26 Greatest Overweight (x) 49 | 2 2 . 49 Average Overweight (x) . | 1 . . 1 Largest Inventory Capacity 30 | 5 5 5 30 Average Capacity 13 | 5 5 5 16 Most Carried 5 | 5 5 5 5 Average Carried 4 | 1 3 5 4 Final Capacity 30 | 5 5 5 30 Final Carried 5 | 5 5 5 5 Class Distribution -------------------- 62% | Hacker-Mutant 33% | Hauler-Mutant 3% | Scavenger-Mutant Dominant Class ---------------- Hacker-Mutant | -10/Materials Hacker-Mutant | -10/Mines Hacker-Mutant | -10/Subcaves Resources | -11 -10 -10 -10 ----------- Run | Yrd Mat Min Sub Matter Collected 559 | 250 57 43 209 Remotely . | . . . . Salvage Created 1307 | 252 368 121 566 Parts 76 | 22 18 7 29 Haulers Intercepted 2 | . 2 . . Recyclers Shooed . | . . . . Parts Field Recycled . | . . . . Retrieved Matter . | . . . . Parts Self-Destructed . | . . . . Prevented . | . . . . Parts Restored . | . . . . Kills | -11 -10 -10 -10 ------- Run | Yrd Mat Min Sub Combat Hostiles Destroyed 24 | . 6 4 14 Guns 20 | . 6 4 10 Cannons 4 | . . . 4 Classes Destroyed 10 | 3 4 . 3 Worker 3 | 2 1 . . Tunneler 8 | 7 1 . . Hauler 2 | . 2 . . Recycler 2 | 1 1 . . Turret 1 | . . . 1 Watcher 1 | . 1 . . Swarmer 10 | . 4 2 4 Grunt 6 | . 2 2 2 Subdweller 8 | . . . 8 Scientist 1 | . . . 1 Best Kill Streak 6 | 6 4 2 4 Combat Bots Only 4 | . 2 2 4 Max Kills in Single Turn 2 | 1 2 1 1 Gunslinging . | . . . . Exploded . | . . . . Melee . | . . . . Uniques/NPCs Destroyed . | . . . . Combat | -11 -10 -10 -10 -------- Run | Yrd Mat Min Sub Hostile Shots Fired 278 | . 18 29 231 Missed 107 | . 7 18 82 Hits 171 | . 11 11 149 Projectile 171 | . 11 11 149 Damage Taken 991 | . 72 70 849 Core 254 | . 10 19 225 Absorbed by Shields . | . . . . Ignored by Resistances 610 | . 49 46 515 Core Remaining (%) 100 | 100 . . . Volleys Fired 161 | 18 32 16 95 Largest 2 | 2 2 2 2 Hottest 225 | 90 90 90 225 Shots Fired 259 | 36 64 32 127 Gun 240 | 36 64 32 108 Cannon 19 | . . . 19 Launcher . | . . . . Special . | . . . . Kinetic 19 | . . . 19 Thermal 240 | 36 64 32 108 Explosive . | . . . . Electromagnetic . | . . . . Robot Hit Streak 32 | 31 32 11 16 Robot Miss Streak 2 | . 1 2 1 Penetration Max . | . . . . Secondary Targets . | . . . . Shots Hit Robots 165 | 31 46 24 64 Core Hits 62 | 11 20 7 24 Critical Kills . | . . . . Critical Parts Destroyed . | . . . . Critical Strikes 9 | 1 2 . 6 Burn 9 | 1 2 . 6 Melee Attacks . | . . . . Impact . | . . . . Slashing . | . . . . Piercing . | . . . . Sneak Attacks . | . . . . Combat Hostiles . | . . . . Follow-up Attacks . | . . . . Damage Inflicted 2550 | 365 574 286 1325 Guns 2350 | 365 570 286 1129 Cannons 196 | . . . 196 Explosions . | . . . . Melee . | . . . . Ramming 4 | . 4 . . Kinetic 196 | . . . 196 Thermal 2350 | 365 570 286 1129 Explosive . | . . . . Electromagnetic . | . . . . Impact . | . . . . Slashing . | . . . . Piercing . | . . . . Highest Corruption 1 | . 1 1 1 Average Corruption 1 | . 1 1 1 Corruption Purged . | . . . . Corruption Blocked . | . . . . Effects 26 | . . . 26 Message Errors 8 | . . . 8 Matter Fused 9 | . . . 9 Heat Flow Errors 3 | . . . 3 Energy Discharges 1 | . . . 1 Data Loss (minor) 3 | . . . 3 Misfires 1 | . . . 1 Alerts 1 | . . . 1 Overload Shots 11 | . . . 11 Effects 6 | . . . 6 Energy Bleed 1 | . . . 1 Heat Surge 2 | . . . 2 Short Circuit 3 | . . . 3 Overflow Damage 24 | . . . 24 Projectiles 24 | . . . 24 Explosions . | . . . . Melee . | . . . . Knockbacks 1 | . . . 1 Impact . | . . . . Kinetic 1 | . . . 1 Secondary . | . . . . Self-Inflicted Damage 2 | . 2 . . Shots . | . . . . Rammed 1 | . 1 . . Targets Rammed 1 | . 1 . . Kicked . | . . . . Crushed . | . . . . Highest Temperature 551 | 300 210 387 551 Average Temperature 121 | 103 59 161 197 Received Heat Transfer 600 | . 33 42 525 Effects 12 | . . 2 10 Shutdowns 1 | . . . 1 Energy Bleed 2 | . . . 2 Interference 3 | . . 2 1 Short Circuit 1 | . . . 1 Damage (major) 4 | . . . 4 Damage (core) 1 | . . . 1 Siege Activations . | . . . . Martial Activations . | . . . . Shielding Activations . | . . . . Robots Disrupted . | . . . . Combat Hostiles . | . . . . Robots Corrupted . | . . . . Combat Hostiles . | . . . . Parts Fried . | . . . . Impact Corruptions . | . . . . Robots Melted . | . . . . Combat Hostiles . | . . . . Parts Melted 12 | 6 1 . 5 Heat Transferred 6045 | 1065 1672 768 2540 Parts Sabotaged . | . . . . Parts Stolen . | . . . . Parts Stripped . | . . . . Power Chain Reactions . | . . . . Alert | -11 -10 -10 -10 ------- Run | Yrd Mat Min Sub Maximum Alert Level . | . . . . Low Security (%) 100 | 100 100 100 . Level 1 . | . . . . Level 2 . | . . . . Level 3 . | . . . . Level 4 . | . . . . Level 5 . | . . . . High Security . | . . . . Max Security . | . . . . Peak Influence 50 | 10 50 50 . Initial . | . . . . Average 8 | 2 10 9 . Influence Increases 614 | 50 209 130 225 Destroy 0b10 Robot/C 340 | . 120 80 140 Destroy 0b10 Robot/NC 80 | 50 30 . . Destroy Leader 66 | . 36 20 10 Successful Hack 8 | . 8 . . Partial Spotted 45 | . 15 30 . Lose Combat Pursuer 75 | . . . 75 Influence Decreases 539 | 50 209 130 150 Time Decay 529 | 50 209 130 140 Lost Part 10 | . . . 10 Squads Dispatched . | . . . . Investigation . | . . . . Extermination . | . . . . Reinforcement . | . . . . Assault . | . . . . Garrison . | . . . . Intercept . | . . . . Searches Triggered . | . . . . Construction Impeded . | . . . . Haulers Reinforced . | . . . . Active Scanning Responses . | . . . . Cargo Convoy Interrupts . | . . . . Stealth | -11 -10 -10 -10 --------- Run | Yrd Mat Min Sub Distress Signals . | . . . . Communications Jammed . | . . . . Distress Signals . | . . . . Times Spotted 33 | . 10 6 17 Peak Tracking Total 6 | . 2 4 6 Tactical Retreats 3 | . . . 3 Traps | -11 -10 -10 -10 ------- Run | Yrd Mat Min Sub Traps Triggered 3 | . 3 . . Indirectly . | . . . . Trap Hack Attempts . | . . . . Triggered . | . . . . Disarmed . | . . . . Reprogrammed . | . . . . Reused . | . . . . Traps Extracted . | . . . . Installed . | . . . . Triggered . | . . . . Machines | -11 -10 -10 -10 ---------- Run | Yrd Mat Min Sub Machines Disabled 2 | . . . 2 Max in Single Turn 1 | . . . 1 Machines Repaired . | . . . . Machines Dismantled . | . . . . Machines Sabotaged . | . . . . Overloaded Fab Kills . | . . . . Hacking | -11 -10 -10 -10 --------- Run | Yrd Mat Min Sub Machines Accessed 6 | . 5 . 1 Terminals 4 | . 4 . . Fabricators . | . . . . Repair Stations . | . . . . Recycling Units 1 | . 1 . . Scanalyzers . | . . . . Garrison Access . | . . . . Total Hacks 14 | . 13 . 1 Successful 10 | . 9 . 1 Failed 4 | . 4 . . Catastrophic . | . . . . Database Lockouts . | . . . . Manual 12 | . 12 . . Terminals 12 | . 12 . . Fabricators . | . . . . Repair Stations . | . . . . Recycling Units 1 | . 1 . . Scanalyzers . | . . . . Garrison Access . | . . . . Terminal Hacks 4 | . 3 . 1 Prototype ID Bank 3 | . 3 . . Proto ID Catalog 1 | . . . 1 Fabricator Hacks . | . . . . Repair Station Hacks . | . . . . Recycling Unit Hacks 1 | . 1 . . Retrieve Components 1 | . 1 . . Scanalyzer . | . . . . Garrison Access Hacks . | . . . . Unauthorized Hacks 4 | . 4 . . Terminals 4 | . 4 . . Botnet 4 | . 4 . . Fabricators . | . . . . Repair Stations . | . . . . Recycling Units . | . . . . Scanalyzers . | . . . . Garrison Access . | . . . . Data Cores Recovered . | . . . . Used . | . . . . Hacking Detections 2 | . 2 . . Full Trace Events . | . . . . Feedback Events . | . . . . Feedback Blocked . | . . . . Robot Schematics Acquired . | . . . . Robots Built . | . . . . Authchips . | . . . . Time . | . . . . Total Robot Build Rating . | . . . . Part Schematics Acquired . | . . . . Parts Built . | . . . . Authchips . | . . . . Time . | . . . . Total Part Build Rating . | . . . . Part Studies Acquired . | . . . . Parts Repaired . | . . . . Time . | . . . . Parts Recycled . | . . . . Recycled Matter . | . . . . Retrieved Matter . | . . . . Retrieved Components . | . . . . Parts Scanalyzed . | . . . . Part Schematics Acquired . | . . . . Parts Damaged . | . . . . Bothacking | -11 -10 -10 -10 ------------ Run | Yrd Mat Min Sub Used RIF Installer . | . . . . Robots Hacked . | . . . . Non-combat . | . . . . Combat . | . . . . Robot Hacks Applied . | . . . . Relay Couplers Released . | . . . . Fabnet Peak Effective % . | . . . . Robots Rewired . | . . . . Allies Hacked . | . . . . Hacks Repelled . | . . . . Allies | -11 -10 -10 -10 -------- Run | Yrd Mat Min Sub Total Allies 2 | . . 2 . Largest Group 2 | . . 2 2 Highest-Rated Group 49 | . . 49 49 Highest-Rated Ally 31 | . . 31 31 Total Orders . | . . . . Ally Attacks 12 | . . . 12 Total Damage 200 | . . . 200 Kills 1 | . . . 1 Allies Corrupted . | . . . . Allies Melted . | . . . . Intel | -11 -10 -10 -10 ------- Run | Yrd Mat Min Sub Active Infowar (turns) 1286 | 219 609 376 82 Sensors 1286 | 219 609 376 82 Robot Analysis Total . | . . . . Derelict Logs Recovered 2 | . . 1 1 Drone Launches . | . . . . Drone Recoveries . | . . . . Exploration | -11 -10 -10 -10 ------------- Run | Yrd Mat Min Sub Turns Passed 4483 | 226 609 397 3251 Spaces Moved 2616 | 83 624 775 1134 Core 133 | 83 47 . 3 Treads 956 | . . . 956 Legs . | . . . . Wheels 427 | . 427 . . Hover . | . . . . Flight 1100 | . 150 775 175 Fastest Speed 34 | 50 34 34 34 Average Speed 139 | 121 74 34 247 Slowest Speed 2500 | 150 150 34 2500 Overloaded Moves . | . . . . Propulsion Burnouts . | . . . . Robots Hopped 12 | . . 12 . Potential Cave-ins . | . . . . Cave-ins Triggered . | . . . . Exploration Rate (%) 61 | 4 85 99 59 Regions Visited 3 Branch Regions 2 Pre-discovered Areas 2 | . . . 2 Known Exits Taken 3 | 1 1 1 . Unknown Exits Taken . | . . . . Scrap Searched 4 | . . 1 3 Spaces Dug . | . . . . Terrain Destroyed 1 | . . . 1 Melee . | . . . . Projectile 1 | . . . 1 AOE . | . . . . Terrain Rammed . | . . . . Walls Destroyed . | . . . . Machines Disabled . | . . . . Actions | -11 -10 -10 -10 --------- Run | Yrd Mat Min Sub Total 3197 | 173 703 864 1457 Wait 378 | 56 35 82 205 Move 2591 | 82 623 752 1134 Hop 10 | . . 10 . Pick Up 16 | 11 2 . 3 Fast Attach 5 | . . . 5 Attach 10 | 5 3 . 2 Detach 1 | . . . 1 Swap 12 | . 5 2 5 Drop 12 | 1 2 2 7 Fire 161 | 18 32 16 95 Melee . | . . . . Ram 1 | . 1 . . Kick . | . . . . Crush . | . . . . Escape Stasis . | . . . . Rewire . | . . . . Trap . | . . . . Miscellaneous . | . . . . Route ------- -11/Scrapyard -10/Materials (discovered 5 exits: *Mat x3 / *Min x2) -10/Mines (discovered 4 exits: *Mat x2 / *Exi / *Sub) -10/Subcaves (discovered 2 exits: *Mat / *Rec) History --------- Turn | Location | Event 3 | -11/Scrapyard | Identified exit to Materials 3 | -11/Scrapyard | Discovered exit to Materials (range 16) 227 | -11/Scrapyard | Entered Materials 227 | -10/Materials | Evolved 1 slot: Propulsion x1 321 | -10/Materials | Build established: Hacker-Mutant 402 | -10/Materials | Identified exit to Materials 402 | -10/Materials | Discovered exit to Materials (range 14) 518 | -10/Materials | Identified exit to Mines 518 | -10/Materials | Discovered exit to Mines (range 14) 573 | -10/Materials | Discovered exit to Materials (range 8) 607 | -10/Materials | Discovered exit to Mines (range 12) 730 | -10/Materials | Discovered exit to Materials (range 15) 836 | -10/Materials | Entered Mines 861 | -10/Mines | Learned Materials stockpile data 863 | -10/Mines | Discovered exit to Materials (range 12) 864 | -10/Mines | Met a Derelict bent on vengeance 1000 | -10/Mines | Identified exit to Subcaves 1000 | -10/Mines | Discovered exit to Subcaves (range 6) 1027 | -10/Mines | Discovered exit to Materials (range 8) 1040 | -10/Mines | Deemed a non-threat by the Exiles lab entrance 1040 | -10/Mines | Identified exit to Exiles 1040 | -10/Mines | Discovered exit to Exiles (range 5) 1233 | -10/Mines | Entered Subcaves 1233 | -10/Subcaves | Accompanied by 2 allies 1234 | -10/Subcaves | Approached by a straggling Scientist 1240 | -10/Subcaves | Led the pair of lost Derelicts to an unsafe place 1270 | -10/Subcaves | Shifting Twisted Machinery released Sub. Machine Gun 1272 | -10/Subcaves | Shifting Twisted Machinery released Flamer 1495 | -10/Subcaves | Ambushed by Subdwellers from Twisted Machinery 1515 | -10/Subcaves | Core integrity fell below 50% 1538 | -10/Subcaves | Identified exit to Materials 1538 | -10/Subcaves | Discovered exit to Materials (range 15) 1767 | -10/Subcaves | A swath of the cavern ceiling suddenly collapsed 2698 | -10/Subcaves | Learned location of Zion (-7) 2698 | -10/Subcaves | Met a Zionite searching for "candidates" 2919 | -10/Subcaves | Learned location of Mines (-9) 2958 | -10/Subcaves | Visited 4L-MR0's lab 2978 | -10/Subcaves | Found Rainbow Chip 2979 | -10/Subcaves | Attached Rainbow Chip, gained temporary slots: Power, Propulsion, Utility, Weapon 3286 | -10/Subcaves | Build established: Hauler-Mutant 4182 | -10/Subcaves | Core integrity fell below 20% 4434 | -10/Subcaves | Identified exit to Recycling 4434 | -10/Subcaves | Discovered exit to Recycling (range 16) 4484 | -10/Subcaves | Destroyed by Autobeam Turret with Autobeam Last Messages --------------- to Scrap Shield. 04187_ Sub. Power Source melted. 04187_ 5P-4EV(R) destroyed. 04239_ 9ZIIM0P X:QO |L> 04374_ Destroyed Flight Unit. 04377_ S-10 Pest destroyed. 04398_ Spk. Treads destroyed. 04406_ Destroyed Autobeam. 04406_ Autobeam Turret destroyed. 04424_ Subatomizers dissect the Disposable Heat Sink. 04434_ EXIT=FOUND: RECYCLING 04442_ 2YS NJ>TT|5PNGOSLAR6,V&>5QAC:W 04447_ Subatomizers dissect the Disposable Heat Sink. Map ----- +----------------------------------------------------+ | ????????????????????# ??????????????????????????? | | ##??????????????????? ??????????????????????????? | | ###????????????????? ??????????? ??????????????? | | #????????????????? #?????? ?? ??????????????? | | #?????????????????# ?????? ? ?#?????????????? | | ##?????????????????# ?????# #?????????????? | | ###??????????????????# ##??? ??????????????? | | ##???????????????????? ??? # #??????????????? | | ##???????????????????# ??? # ###????????????? | | ##??????????????????# #??? # #????????????? | | #??????????????????# #??? ##???????????? | | #???????#####????#### ###? #???????????? | | ######?###" ???## # ## #???????????? | | ### ###" """"#### # #???????????? | | ## ^ ## *% ## # #???????????? | | #?# ### ##???????????? | | ### !#### #????????????? | | ## ## !%# # # ##????????????? | | ##### ]#&[% #?????????????? | | ????## ^ # # !%%!& #?????????????? | | ?????## ^ ### !# ## #?????????????? | | ??????# #?# ## ## #?????????????? | | ??????# ## ## ### # #?????????????? | | ??????# #### ### ### # # ##?????????????? | | ?????# #?? ##?###?## ### #?#??????????????? | | ?????# #?## #??????# @#??# #????????????????? | | ?????## #??# ##??????#% ##????????????????? | | ??????## #?? ???????#%[ ##?????????????????? | | ???????###? ??????? ## #?????????????????? | | ??????????? ????? ==[ ##??#?????????????????? | | ??????????? #???? %[*##?????????????????????? | | ????????? ? #???? %=%##??????????????????????? | | ???????? ?? #????# [##???????????????????????? | | ??????? ??????????# ?????????????????????????? | | ###### ??????????? ?????????????????????????? | | ???????????? ?????????????????????????? | | ???????????? ?????????????????????????? | | #????????????? t ?????????????????????????? | | ??????????????" " "?????????????????????????? | | #???????????????????% "?????????????????????????? | | #?#####??????????????